[Event "AUT Bundesliga 2022-23"]
[Site "Jenbach"]
[Date "2022.11.05"]
[Round "3.16"]
[White "Peyrer, Konstantin"]
[Black "Richter, Nils"]
[Result "0-1"]
[ECO "A45"]
[WhiteElo "2402"]
[BlackElo "2395"]
[Annotator "TA"]
[PlyCount "56"]
[EventDate "2022.11.03"]
[EventType "team-tourn"]
[EventCountry "AUT"]
[SourceTitle "playchess.com"]
[Source "ChessBase"]
[SourceQuality "1"]
[TimeControl "40/5400+30:1800+30"]

{[%evp 9,56,0,15,8,12,7,20,17,29,16,36,30,27,0,0,0,0,0,0,-29,0,-64,-68,-73,-77,-93,-106,-116,-82,-165,-179,-395,-392,-379,-246,-251,-252,-256,-209,-263,-266,-235,-57,-918,-914,-860,-806,-29997,-29998]} 1. d4 {[%emt 0:00:00]} Nf6 {[%emt 0:00:00]} 2. Bf4 {[%emt 0:00:08]} d5 {[%emt 0:00:08]} 3. e3 {[%emt 0:00:07]} c5 {[%emt 0:00:20]} 4. c3 {[%emt 0:00:06]} Nc6 {[%emt 0:00:16]} 5. Nd2 {[%emt 0:00:07]} cxd4 {[%emt 0:01:03]} 6. exd4 {[%emt 0:00:28] D00: 1 d4 d5: Unusual lines.} Bf5 {[%emt 0:00:09]} 7. Ngf3 {[%emt 0:00:09]} e6 {[%emt 0:00:52]} 8. Qb3 {[%emt 0:00:15] The position is equal.} Bd6 $1 {[%emt 0:03:43][%mdl 4] outshines the older 8...Qc8.} 9. Qxb7 {[%emt 0:03:05]} Bxf4 {[%emt 0:00:17]} 10. Qxc6+ {[%emt 0:00:08]} Kf8 {[%emt 0:00:11]} 11. g3 {[%emt 0:07:18]} Bd6 {[%emt 0:01:41]} 12. Nh4 {[%emt 0:01:35]} Rb8 {[%emt 0:13:09]} 13. Nxf5 {[%emt 0:06:09]} exf5 {[%emt 0:00:03]} 14. Rb1 {[%emt 0:00:35] [#]} Qe7+ $146 {[%emt 0:15:21][%mdl 1024] Black has compensation.} (14... Rb6 $5 15. Qa4 $8 Qe7+ 16. Be2 h5 $11) ({Predecessor:} 14... Rb6 15. Qa4 Qe7+ 16. Be2 h5 17. Nf3 h4 18. gxh4 Rxh4 19. Qc2 Rf4 20. Qd3 Ne4 {0-1 (28) Palchun,G (2441)-Kobalia,M (2596) St Petersburg 2017}) 15. Be2 {[%emt 0:00:12]} ({White should play} 15. Kd1 $1 $11) 15... g6 $15 {[%emt 0:00:09]} 16. Qa6 {[%emt 0:02:05]} Kg7 {[%emt 0:02:58]} 17. Qd3 {[%emt 0:17:41]} (17. O-O $6 f4 $14) 17... h5 {[%emt 0:04:04]} 18. Nf3 {[%emt 0:07:35]} Ne4 {[%emt 0:01:28][%cal Oh5h4] Black is much more active. The white rooks are badly placed.} 19. Ne5 {[%emt 0:00:56]} (19. Nh4 $17 {is a better defense.}) 19... h4 $19 {[%emt 0:08:41]} (19... Bxe5 20. dxe5 Qxe5 21. O-O $17) 20. O-O $2 {[%emt 0:05:50]} (20. Nc6 Qe8 21. Nxb8 hxg3 22. fxg3 Bxg3+ 23. Kf1 Qxb8) (20. g4 Bxe5 21. dxe5) 20... hxg3 {[%emt 0:08:43]} 21. hxg3 {[%emt 0:03:34]} Rh3 {[%emt 0:15:17]} (21... Bxe5 $2 22. dxe5 Qxe5 23. Qe3 $19) 22. Bf3 {[%emt 0:02:10]} (22. Nc6 Qg5 23. Ne5 Rbh8 24. Qf3 Qh6) 22... Rbh8 {[%emt 0:01:37] ...Qg5 is the strong threat.} ({Inferior is} 22... Bxe5 23. dxe5 Qc5 24. Qd4 Qxd4 25. cxd4 $17) 23. Bg2 {[%emt 0:01:03]} R3h5 {[%emt 0:01:10] And now ...f4 would win.} 24. Rfe1 {[%emt 0:20:06] [#]} f4 $1 {[%emt 0:09:23]} ({Worse is} 24... Bxe5 25. dxe5 f4 26. Qxd5 Nxf2 27. Qd6 (27. Kxf2 $2 fxg3+ 28. Kg1 Qh4 $19) 27... Qxd6 28. exd6 fxg3 29. Re2 $11) 25. gxf4 {[%emt 0:06:33] [#]} Qh4 $2 {[%emt 0:03:25] Chess con chili.} (25... Rh2 $1 $19 {( -> ...Qh4)} 26. Bxe4 dxe4) 26. Bxe4 $4 {[%emt 0:01:02][%mdl 8192]} (26. Rxe4 $15 dxe4 27. Qxe4) 26... dxe4 {[%emt 0:01:08]} 27. Qxe4 {[%emt 0:00:11]} Bxe5 {[%emt 0:00:59]} 28. dxe5 {[%emt 0:00:29]} Qg4+ {[%emt 0:00:14] Weighted Error Value: White=0.67/Black=0.19 (very precise)} 0-1

[Event "AUT Bundesliga 2022-23"]
[Site "Jenbach"]
[Date "2022.11.05"]
[Round "3.17"]
[White "Deuer, Marius"]
[Black "Steindl, Johannes"]
[Result "1/2-1/2"]
[ECO "D11"]
[WhiteElo "2326"]
[BlackElo "2315"]
[Annotator "TA"]
[PlyCount "112"]
[EventDate "2022.11.03"]
[EventType "team-tourn"]
[EventCountry "AUT"]
[SourceTitle "playchess.com"]
[Source "ChessBase"]
[SourceQuality "1"]
[TimeControl "40/5400+30:1800+30"]

{[%evp 13,112,12,14,12,15,14,12,8,17,14,10,12,15,8,26,20,32,16,5,0,10,0,41,49,35,33,37,33,42,29,39,42,32,7,14,19,9,0,0,0,0,0,0,-6,-6,-5,2,4,6,5,5,0,0,2,3,0,0,0,0,0,0,-18,-18,-10,-27,-24,-15,-18,0,0,0,0,0,0,0,0,0,0,0,0,0,0,0,0,0,0,0,0,0,0,0,0,0,0,0,0,0,0,0,0,0]} 1. d4 {[%emt 0:00:02]} d5 {[%emt 0:00:05]} 2. c4 {[%emt 0:00:05]} c6 {[%emt 0:00:02]} 3. Nf3 {[%emt 0:00:06]} Nf6 {[%emt 0:00:04]} 4. Qc2 {[%emt 0:00:12]} dxc4 {[%emt 0:00:04]} 5. Qxc4 {[%emt 0:00:06]} Bf5 {[%emt 0:00:02]} 6. g3 {[%emt 0:00:42]} e6 {[%emt 0:00:04]} 7. Bg2 {[%emt 0:00:20]} Be7 {[%emt 0:00:03] is cutting edge theory.} 8. O-O {[%emt 0:00:23] D23: Queen's Gambit Accepted: 3 Nf3 Nf6 sidelines.} O-O {[%emt 0:00:04]} 9. e3 {[%emt 0:00:31]} Nbd7 {[%emt 0:00:04]} 10. Rd1 {[%emt 0:00:05]} Rc8 {[%emt 0:00:03]} 11. Qe2 {[%emt 0:01:21]} Bg6 {[%emt 0:00:05]} 12. Nc3 {[%emt 0:09:52]} b5 {[%emt 0:00:55]} 13. b3 {[%emt 0:13:38]} Qa5 {[%emt 0:07:58]} 14. Bb2 {[%emt 0:05:27]} b4 {[%emt 0:00:40] [#]} 15. Nb1 $146 {[%emt 0:04:10]} ({Predecessor:} 15. Na4 Rc7 16. h3 Qb5 17. Qe1 Be4 18. Rac1 Qb7 19. Nc5 Nxc5 20. dxc5 a5 21. Nd2 Bxg2 22. Kxg2 {1-0 (44) David,A (2520)-Lamard,G (2486) Chartres 2020}) 15... Qb5 {[%emt 0:02:03]} 16. Qe1 {[%emt 0:04:02]} a5 {[%emt 0:06:40]} 17. Nbd2 {[%emt 0:13:57]} Ne4 {[%emt 0:04:06]} 18. Nxe4 {[%emt 0:01:00]} Bxe4 {[%emt 0:00:04]} 19. Bf1 {[%emt 0:00:11]} Qb8 {[%emt 0:08:10]} 20. Nd2 {[%emt 0:00:42]} Bg6 {[%emt 0:00:04]} 21. Nc4 {[%emt 0:03:46]} a4 {[%emt 0:17:18]} 22. bxa4 {[%emt 0:02:33]} Bc2 {[%emt 0:00:05][%csl LRa4,LRd1]} 23. Rdc1 {[%emt 0:03:11]} Bxa4 {[%emt 0:00:05]} 24. a3 {[%emt 0:09:07]} b3 {[%emt 0:02:28]} 25. Qa5 {[%emt 0:04:05]} Qa8 $1 {[%emt 0:02:15]} 26. Rab1 {[%emt 0:04:47]} Qxa5 {[%emt 0:04:03]} 27. Nxa5 {[%emt 0:00:02]} c5 {[%emt 0:00:12]} 28. Bc4 {[%emt 0:06:17]} cxd4 {[%emt 0:02:37]} 29. exd4 {[%emt 0:00:01]} Nb6 {[%emt 0:02:13]} 30. Bxb3 {[%emt 0:02:04]} Bxb3 {[%emt 0:00:49]} 31. Nxb3 {[%emt 0:00:56]} Na4 {[%emt 0:00:04]} 32. Nc5 {[%emt 0:03:28]} Nxb2 {[%emt 0:01:34]} 33. Rxb2 {[%emt 0:00:07]} Rfd8 {[%emt 0:01:24]} 34. a4 {[%emt 0:07:07]} Rxd4 {[%emt 0:13:55] [#] Strongly threatening ...Rd5.} 35. Rbc2 {[%emt 0:00:06]} Rb4 {[%emt 0:02:29]} 36. a5 {[%emt 0:02:14]} g6 {[%emt 0:04:54]} ({Don't take} 36... Rb5 37. Nd7 Rd8 38. Rc8 $16) 37. Nd7 {[%emt 0:01:44]} Rxc2 {[%emt 0:04:47]} 38. Rxc2 $11 {[%emt 0:00:00][%mdl 4096] Endgame KRB-KRN} Ra4 {[%emt 0:00:07] Prevents Ra2.} 39. Rc8+ {[%emt 0:00:05]} Kg7 {[%emt 0:00:02]} 40. Ra8 $1 {[%emt 0:00:00] The position is equal.} Bf6 {[%emt 0:00:00]} 41. Nxf6 {[%emt 0:24:54]} Kxf6 {[%emt 0:01:01] KR-KR} 42. a6 {[%emt 0:00:06]} h5 {[%emt 0:02:09]} 43. Kg2 {[%emt 0:00:31]} Kf5 {[%emt 0:00:23]} 44. h4 {[%emt 0:00:59]} Ra3 {[%emt 0:00:50]} 45. Kf1 {[%emt 0:02:03]} e5 {[%emt 0:01:34][%cal Be6e5,Be5e4,Be4e3][%mdl 32]} 46. Ra7 {[%emt 0:01:02]} f6 {[%emt 0:00:09]} 47. Ra8 {[%emt 0:00:49]} Ra2 {[%emt 0:06:31]} 48. a7 {[%emt 0:00:43]} e4 {[%emt 0:01:27]} 49. Ke1 {[%emt 0:01:31]} Ra6 {[%emt 0:08:16]} 50. Ke2 {[%emt 0:00:53]} Ra3 {[%emt 0:00:04]} 51. Ke1 {[%emt 0:00:46]} e3 {[%emt 0:02:01]} 52. f3 {[%emt 0:00:41] [#] And now Ke2 would win.} Ra2 {[%emt 0:00:02]} 53. Kf1 {[%emt 0:00:06]} Rf2+ {[%emt 0:00:13]} 54. Ke1 {[%emt 0:00:01] Re8 would kill now.} Ra2 {[%emt 0:00:09]} 55. Kf1 {[%emt 0:00:56]} Rf2+ {[%emt 0:00:11]} 56. Ke1 {[%emt 0:00:41] White threatens Rf8 and mate.} Ra2 {[%emt 0:00:04] Weighted Error Value: White=0.04 (flawless) /Black=0.03 (flawless)} 1/2-1/2

[Event "AUT Bundesliga 2022-23"]
[Site "Jenbach"]
[Date "2022.11.05"]
[Round "3.18"]
[White "Huber, Benedikt"]
[Black "Neyman, Igor"]
[Result "1/2-1/2"]
[ECO "B40"]
[WhiteElo "2299"]
[BlackElo "2354"]
[Annotator "TA"]
[PlyCount "99"]
[EventDate "2022.11.03"]
[EventType "team-tourn"]
[EventCountry "AUT"]
[SourceTitle "playchess.com"]
[Source "ChessBase"]
[SourceQuality "1"]
[TimeControl "40/5400+30:1800+30"]

{[%evp 10,99,27,10,41,-1,8,-24,2,8,14,14,14,6,24,25,15,0,-7,-37,-14,-44,-1,-35,-29,-42,-42,-85,-41,-25,-30,-156,-158,-172,-85,-84,-86,-97,-42,-68,-36,-74,0,0,29,5,41,-20,0,-39,-16,-10,-20,-25,-26,-245,-243,-254,-258,-256,-256,-273,-256,-238,-232,-210,-225,-318,-149,-208,-197,-261,0,0,0,0,0,0,0,0,0,0,0,0,0,0,0,0,0,0,0,0]} 1. e4 {[%emt 0:00:04]} c5 {[%emt 0:00:45]} 2. Nf3 {[%emt 0:00:07]} e6 {[%emt 0:02:11]} 3. b3 {[%emt 0:00:34]} Nc6 {[%emt 0:02:24]} 4. Bb2 {[%emt 0:00:15]} d6 {[%emt 0:03:11]} 5. d4 {[%emt 0:00:39]} cxd4 {[%emt 0:00:59]} 6. Nxd4 {[%emt 0:00:06]} e5 {[%emt 0:02:30] B50: Sicilian: 2...d6, Miscellaneous.} 7. Ne2 {[%emt 0:18:13]} Nf6 {[%emt 0:02:04]} 8. Nbc3 {[%emt 0:00:26]} Be6 {[%emt 0:10:16] Black has an edge.} (8... Qa5 $5 {[%cal Rf6e4]}) 9. g3 {[%emt 0:22:09] [#]} d5 $146 {[%emt 0:10:38]} ({Predecessor:} 9... Qa5 10. Bg2 Rd8 11. a3 b5 12. Qd3 a6 13. O-O Be7 14. Nd5 Bxd5 15. exd5 Nb8 {1-0 (68) Hernandez Leon,S (2060)-Hidalgo Santana,F (2182) Santa Cruz de Tenerife 2017}) 10. exd5 {[%emt 0:01:40]} Nxd5 {[%emt 0:01:05]} 11. Bg2 {[%emt 0:00:09][%cal Rc3d5]} Nf6 {[%emt 0:12:53]} 12. O-O {[%emt 0:04:34]} Qa5 {[%emt 0:09:02]} 13. h3 {[%emt 0:20:44]} Rd8 {[%emt 0:03:24]} 14. Qc1 {[%emt 0:01:49]} Bd6 {[%emt 0:02:23]} 15. a3 {[%emt 0:08:14]} a6 {[%emt 0:06:32]} 16. Nd1 {[%emt 0:06:04]} Qb6 {[%emt 0:04:01]} 17. Rb1 {[%emt 0:02:36]} O-O {[%emt 0:01:56]} 18. Ba1 {[%emt 0:02:31]} Nd4 {[%emt 0:05:19]} 19. Nxd4 {[%emt 0:01:58]} exd4 {[%emt 0:00:03]} 20. c3 {[%emt 0:00:12]} (20. Nb2 $11 {keeps the balance.}) 20... Bf5 $17 {[%emt 0:05:22]} (20... Bxb3 $2 21. Qb2 $18) 21. cxd4 {[%emt 0:00:24] [#]} Bxb1 {[%emt 0:00:51]} (21... Bxa3 $1 $19 {[%mdl 512] is more deadly.} 22. Bb2 (22. Qxa3 Bxb1) 22... Rc8) 22. Qxb1 {[%emt 0:00:02]} Bxa3 {[%emt 0:00:23]} 23. Ne3 {[%emt 0:00:29] Prevents Nd5.} Bb4 {[%emt 0:01:51]} (23... Be7 $17 24. Qd3 Rfe8) 24. d5 $15 {[%emt 0:00:21]} Nd7 {[%emt 0:02:41][%cal Bf6d7,Bd7c5,Bc5e4][%mdl 32]} 25. Be4 {[%emt 0:03:14]} Rfe8 {[%emt 0:04:34]} (25... g6 $17) 26. Bxh7+ $11 {[%emt 0:01:17] A strong pair of Bishops.} Kh8 {[%emt 0:00:17]} 27. Be4 {[%emt 0:02:59][%mdl 1024] White has compensation.} ({Reject} 27. Qb2 Nf6 28. Bb1 Bc5 $17) 27... Bf8 {[%emt 0:02:50]} 28. Bg2 {[%emt 0:01:09]} ({White should play} 28. Kg2 $14) 28... Qg6 {[%emt 0:00:59]} 29. Qd1 {[%emt 0:00:14]} Nc5 {[%emt 0:00:24]} 30. h4 {[%emt 0:00:13]} Ne4 {[%emt 0:00:22][%cal Oe4g3] [#] White must now prevent ...Nxg3!} 31. h5 {[%emt 0:00:20]} Qg5 {[%emt 0:00:28]} 32. f4 {[%emt 0:00:43]} (32. Bd4 $11 {and White stays safe.}) 32... Qxg3 $19 {[%emt 0:01:46]} 33. Rf3 {[%emt 0:00:17]} Qh4 {[%emt 0:00:14] Strongly threatening ...Bc5.} 34. h6 {[%emt 0:01:41]} Bc5 {[%emt 0:01:33] aiming for ...Bxe3+.} ({Don't take} 34... Qxh6 35. Rh3 Rd6 36. Rxh6+ Rxh6 37. Nf5 $18) 35. Bxg7+ {[%emt 0:00:40]} Kh7 {[%emt 0:00:23] Threatens to win with ...Bxe3+.} 36. Bd4 {[%emt 0:00:09]} Bxd4 {[%emt 0:00:40]} (36... Qxh6 $2 37. Rh3 Qxh3 38. Bxh3 $18) 37. Qxd4 {[%emt 0:00:02][%csl Gh6][%cal Rd4g7]} Qf6 {[%emt 0:00:13] Prevents Qg7+.} (37... Qxh6 $2 38. Rh3 Qxh3 39. Bxh3 $18) 38. Qd3 {[%emt 0:00:33]} (38. Qxf6 {is a better defense.} Nxf6 39. Rh3) 38... Kh8 {[%emt 0:00:47]} (38... Qxh6 $2 39. Rh3 Qxh3 40. Bxh3 $18) (38... Qg6 $19 {...Rc8 is the strong threat.} 39. f5 Qg5) 39. Ng4 {[%emt 0:00:50]} (39. Nc4 $17) 39... Qb6+ {[%emt 0:00:41]} 40. Re3 {[%emt 0:00:00]} (40. Qe3 {was worth a try.} Qxe3+ 41. Rxe3) 40... f5 $2 {[%emt 0:00:00]} ({Black should try} 40... Rg8 $19 41. Ne5 Rg3) 41. Bxe4 $11 {[%emt 0:02:31] Chess con chili. The position is equal.} Rxe4 {[%emt 0:07:02]} 42. Qc3+ $1 {[%emt 0:01:39]} Qd4 {[%emt 0:03:31]} 43. Qxd4+ {[%emt 0:01:42]} Rxd4 {[%emt 0:00:13][%mdl 4096] Endgame KRR-KRN} 44. Nf6 {[%emt 0:00:30] Threatening mate with Re7.} Rf8 {[%emt 0:01:46]} (44... Rxf4 $2 45. Re7 Rg8+ 46. Nxg8 Rg4+ 47. Kf2 $18) 45. Re6 {[%emt 0:00:25]} Rxf4 {[%emt 0:01:48]} 46. d6 {[%emt 0:01:19] White threatens d7 and mate.} Rd4 {[%emt 0:01:25]} 47. d7 {[%emt 0:01:08] Re8 would kill now.} Rxf6 {[%emt 0:00:57]} 48. Rxf6 {[%emt 0:00:21]} Rxd7 {[%emt 0:00:08]} 49. Rxf5 {[%emt 0:00:03]} b5 {[%emt 0:05:40]} 50. Rf6 {[%emt 0:02:05] And White is the lucky defender.  Weighted Error Value: White=0.26 (precise) /Black=0.30} 1/2-1/2

[Event "AUT Bundesliga 2022-23"]
[Site "Jenbach"]
[Date "2022.11.05"]
[Round "3.19"]
[White "Ragger, Markus"]
[Black "Rozentalis, Eduardas"]
[Result "1-0"]
[ECO "C42"]
[WhiteElo "2632"]
[BlackElo "2500"]
[Annotator "ChessBase"]
[PlyCount "101"]
[EventDate "2022.11.03"]
[EventType "team-tourn"]
[EventCountry "AUT"]
[SourceTitle "playchess.com"]
[Source "ChessBase"]
[SourceQuality "1"]
[TimeControl "40/5400+30:1800+30"]

1. e4 {[%emt 0:00:02]} e5 {[%emt 0:00:17]} 2. Nf3 {[%emt 0:00:03]} Nf6 {[%emt 0:00:06]} 3. Nxe5 {[%emt 0:00:06]} d6 {[%emt 0:00:07]} 4. Nf3 {[%emt 0:00:04]} Nxe4 {[%emt 0:00:05]} 5. d4 {[%emt 0:00:03]} Be7 {[%emt 0:00:49]} 6. Bd3 {[%emt 0:00:16]} Nf6 {[%emt 0:00:15]} 7. O-O {[%emt 0:00:17]} Nc6 {[%emt 0:00:30]} 8. h3 {[%emt 0:00:50]} O-O {[%emt 0:00:11]} 9. a3 {[%emt 0:00:19]} h6 {[%emt 0:01:31]} 10. Re1 {[%emt 0:00:57]} a6 {[%emt 0:01:07]} 11. c4 {[%emt 0:08:23]} d5 {[%emt 0:00:39]} 12. b3 {[%emt 0:02:33]} Re8 {[%emt 0:09:48]} 13. Nc3 {[%emt 0:02:25]} Be6 {[%emt 0:01:33]} 14. Ra2 {[%emt 0:06:20]} Bf8 {[%emt 0:24:23]} 15. Rae2 {[%emt 0:17:11]} Qd7 {[%emt 0:09:08]} 16. Ne5 {[%emt 0:05:30]} Nxe5 {[%emt 0:05:49]} 17. dxe5 {[%emt 0:01:19]} d4 {[%emt 0:00:32]} 18. exf6 {[%emt 0:11:15]} dxc3 {[%emt 0:00:09]} 19. Re3 {[%emt 0:09:27]} g6 {[%emt 0:09:10]} 20. Qc2 {[%emt 0:06:59]} Kh7 {[%emt 0:07:24]} 21. Qxc3 {[%emt 0:02:41]} Rad8 {[%emt 0:02:24]} 22. Be4 {[%emt 0:11:23]} c6 {[%emt 0:05:04]} 23. Qc2 {[%emt 0:03:49]} a5 {[%emt 0:08:26]} 24. Bb2 {[%emt 0:01:40]} a4 {[%emt 0:05:59]} 25. b4 {[%emt 0:01:55]} Qd2 {[%emt 0:02:35]} 26. c5 {[%emt 0:01:47]} h5 {[%emt 0:03:31]} 27. Bc3 {[%emt 0:00:35]} Qxc2 {[%emt 0:00:36]} 28. Bxc2 {[%emt 0:00:01]} Rd7 {[%emt 0:00:51]} 29. Re5 {[%emt 0:00:57]} Kg8 {[%emt 0:00:37]} 30. g4 {[%emt 0:02:52]} Red8 {[%emt 0:01:01]} 31. gxh5 {[%emt 0:00:18]} Bf5 {[%emt 0:00:13]} 32. Bxf5 {[%emt 0:02:32]} gxf5 {[%emt 0:00:05]} 33. Re8 {[%emt 0:00:46]} Kh7 {[%emt 0:01:16]} 34. Kg2 {[%emt 0:00:31]} Kh6 {[%emt 0:00:21]} 35. R1e5 {[%emt 0:00:57]} Kxh5 {[%emt 0:00:33]} 36. Rxf5+ {[%emt 0:00:26]} Kg6 {[%emt 0:00:03]} 37. Ree5 {[%emt 0:00:39]} Bh6 {[%emt 0:00:13]} 38. Rf3 {[%emt 0:00:43]} Rd3 {[%emt 0:00:09]} 39. Bb2 {[%emt 0:00:22]} Rxf3 {[%emt 0:00:54]} 40. Kxf3 {[%emt 0:00:00]} Rd3+ {[%emt 0:00:00]} 41. Kg4 {[%emt 0:02:35]} Rd2 {[%emt 0:12:02]} 42. Bc1 {[%emt 0:01:59]} Rxf2 {[%emt 0:13:16]} 43. Bxh6 {[%emt 0:01:44]} Kxh6 {[%emt 0:00:08]} 44. Re7 {[%emt 0:00:18]} Kg6 {[%emt 0:00:10]} 45. Rxb7 {[%emt 0:00:05]} Ra2 {[%emt 0:00:09]} 46. Kf4 {[%emt 0:08:12]} Kxf6 {[%emt 0:03:54]} 47. Rb6 {[%emt 0:00:46]} Ke7 {[%emt 0:00:07]} 48. Rxc6 {[%emt 0:02:13]} Rxa3 {[%emt 0:00:07]} 49. Ra6 {[%emt 0:00:07]} Rxh3 {[%emt 0:06:08]} 50. Rxa4 {[%emt 0:01:02]} Kd7 {[%emt 0:00:01]} 51. Ke5 {[%emt 0:00:45]} 1-0

[Event "AUT Bundesliga 2022-23"]
[Site "Jenbach"]
[Date "2022.11.05"]
[Round "3.20"]
[White "Baenziger, Fabian"]
[Black "Naumann, Alexander"]
[Result "1/2-1/2"]
[ECO "E04"]
[WhiteElo "2439"]
[BlackElo "2513"]
[Annotator "ChessBase"]
[PlyCount "61"]
[EventDate "2022.11.03"]
[EventType "team-tourn"]
[EventCountry "AUT"]
[SourceTitle "playchess.com"]
[Source "ChessBase"]
[SourceQuality "1"]
[TimeControl "40/5400+30:1800+30"]

1. d4 {[%emt 0:00:04]} Nf6 {[%emt 0:00:06]} 2. c4 {[%emt 0:00:07]} e6 {[%emt 0:00:08]} 3. Nf3 {[%emt 0:00:06]} d5 {[%emt 0:00:09]} 4. g3 {[%emt 0:00:22]} dxc4 {[%emt 0:00:32]} 5. Bg2 {[%emt 0:00:09]} c5 {[%emt 0:00:22]} 6. O-O {[%emt 0:00:36]} Nc6 {[%emt 0:00:09]} 7. Qa4 {[%emt 0:01:00]} Bd7 {[%emt 0:01:10]} 8. dxc5 {[%emt 0:01:19]} Qa5 {[%emt 0:09:06]} 9. Qxa5 {[%emt 0:12:53]} Nxa5 {[%emt 0:00:09]} 10. Bd2 {[%emt 0:00:05]} Nc6 {[%emt 0:00:28]} 11. Na3 {[%emt 0:00:11]} Bxc5 {[%emt 0:13:41]} 12. Nxc4 {[%emt 0:00:20]} O-O {[%emt 0:27:55]} 13. Rfd1 {[%emt 0:07:47]} Rfd8 {[%emt 0:03:48]} 14. Rac1 {[%emt 0:09:25]} Be8 {[%emt 0:11:13]} 15. Nfe5 {[%emt 0:10:17]} Nxe5 {[%emt 0:16:19]} 16. Nxe5 {[%emt 0:00:08]} Rac8 {[%emt 0:00:15]} 17. Nd3 {[%emt 0:05:25]} b6 {[%emt 0:00:17]} 18. Nxc5 {[%emt 0:19:05]} Rxc5 {[%emt 0:00:08]} 19. Bc3 {[%emt 0:02:32]} Rdc8 {[%emt 0:02:13]} 20. e4 {[%emt 0:07:55]} Bb5 {[%emt 0:03:10]} 21. f3 {[%emt 0:01:04]} Nd7 {[%emt 0:03:04]} 22. Bf1 {[%emt 0:11:51]} Nf8 {[%emt 0:05:18]} 23. Rd6 {[%emt 0:04:09]} Bxf1 {[%emt 0:00:14]} 24. Kxf1 {[%emt 0:00:04]} R5c7 {[%emt 0:00:58]} 25. Rcd1 {[%emt 0:00:48]} f6 {[%emt 0:00:10]} 26. Ke2 {[%emt 0:03:37]} Kf7 {[%emt 0:00:07]} 27. f4 {[%emt 0:01:20]} Ng6 {[%emt 0:01:25]} 28. Rd7+ {[%emt 0:01:02]} Ke8 {[%emt 0:00:10]} 29. R7d6 {[%emt 0:00:20]} Kf7 {[%emt 0:00:10]} 30. Rd7+ {[%emt 0:00:45]} Ke8 {[%emt 0:00:07]} 31. R7d6 {[%emt 0:00:04]} 1/2-1/2